[Event "Early-Titled-Tuesday-Blitz-March-26-2024"]
[Site "Chess.com"]
[Date "2024.03.26"]
[Round "7"]
[White "ActorXu"]
[Black "RandomNoob04"]
[Result "1/2-1/2"]
[WhiteElo "2857"]
[BlackElo "2663"]
[TimeControl "180+1"]
[EndTime "9:15:54 PDT"]
[Termination "Game drawn by agreement"]

1. e4 {[%clk 0:03:00.9]} 1... d5 {[%clk 0:02:59.9]} 2. exd5 {[%clk 0:03:00.8]}
2... Qxd5 {[%clk 0:03:00.8]} 3. Nc3 {[%clk 0:03:01.1]} 3... Qa5 {[%clk
0:03:01.5]} 4. Nf3 {[%clk 0:03:00.9]} 4... Nf6 {[%clk 0:03:02.1]} 5. d4 {[%clk
0:03:01.2]} 5... Bf5 {[%clk 0:03:02.8]} 6. Bc4 {[%clk 0:03:00.1]} 6... e6 {[%clk
0:03:03.4]} 7. O-O {[%clk 0:02:58.3]} 7... Bb4 {[%clk 0:03:03.1]} 8. Ne2 {[%clk
0:02:50.6]} 8... O-O {[%clk 0:02:54.8]} 9. c3 {[%clk 0:02:49.4]} 9... Bd6 {[%clk
0:02:53.9]} 10. Ng3 {[%clk 0:02:49.3]} 10... Bg6 {[%clk 0:02:53.8]} 11. Nh4
{[%clk 0:02:44.3]} 11... c5 {[%clk 0:02:40]} 12. Nxg6 {[%clk 0:02:37.3]} 12...
hxg6 {[%clk 0:02:40.9]} 13. dxc5 {[%clk 0:02:35.7]} 13... Qxc5 {[%clk
0:02:40.2]} 14. Be2 {[%clk 0:02:32]} 14... Qc7 {[%clk 0:02:36.3]} 15. Bg5 {[%clk
0:02:18.4]} 15... Nd5 {[%clk 0:02:30.3]} 16. Bf3 {[%clk 0:02:13.8]} 16... Bf4
{[%clk 0:02:23]} 17. Bxf4 {[%clk 0:02:10.2]} 17... Nxf4 {[%clk 0:02:23.9]} 18.
Qa4 {[%clk 0:02:00.2]} 18... Nd7 {[%clk 0:02:10.6]} 19. Rfd1 {[%clk 0:01:54.9]}
19... Nb6 {[%clk 0:02:08.2]} 20. Qe4 {[%clk 0:01:51]} 20... Nfd5 {[%clk
0:02:07.3]} 21. Rd4 {[%clk 0:01:46.8]} 21... Rfd8 {[%clk 0:02:02.7]} 22. Rad1
{[%clk 0:01:46.2]} 22... Rac8 {[%clk 0:01:53.7]} 23. Qe2 {[%clk 0:01:12.6]}
23... Ne7 {[%clk 0:01:27]} 24. Rxd8+ {[%clk 0:01:09.3]} 24... Rxd8 {[%clk
0:01:27.5]} 25. Rxd8+ {[%clk 0:01:09.6]} 25... Qxd8 {[%clk 0:01:28.4]} 26. Bxb7
{[%clk 0:01:09.7]} 26... Nbd5 {[%clk 0:01:19.8]} 27. Bxd5 {[%clk 0:01:05.5]}
27... Qxd5 {[%clk 0:01:20.7]} 28. b3 {[%clk 0:01:02.5]} 28... Nc6 {[%clk
0:01:10.6]} 29. h3 {[%clk 0:00:59.4]} 29... f5 {[%clk 0:01:08.1]} 30. c4 {[%clk
0:00:50]} 30... Qd6 {[%clk 0:01:06.3]} 31. Nf1 {[%clk 0:00:48]} 31... e5 {[%clk
0:01:04]} 32. Ne3 {[%clk 0:00:47]} 32... Nd4 {[%clk 0:01:03.4]} 33. Qd1 {[%clk
0:00:45.3]} 33... Qa3 {[%clk 0:01:01.3]} 34. Qd2 {[%clk 0:00:40.3]} 34... a5
{[%clk 0:00:52.5]} 35. Nd5 {[%clk 0:00:40.4]} 35... a4 {[%clk 0:00:49.2]} 36.
Kh2 {[%clk 0:00:35]} 36... axb3 {[%clk 0:00:48.2]} 37. axb3 {[%clk 0:00:35.3]}
37... Qxb3 {[%clk 0:00:47.5]} 38. Qg5 {[%clk 0:00:32.4]} 38... Qxc4 {[%clk
0:00:40.4]} 39. Ne7+ {[%clk 0:00:28.7]} 39... Kf7 {[%clk 0:00:36.9]} 40. Nxg6
{[%clk 0:00:27.5]} 40... Qe6 {[%clk 0:00:36.3]} 41. Nh4 {[%clk 0:00:22.6]} 41...
e4 {[%clk 0:00:28.1]} 42. Qh5+ {[%clk 0:00:16.5]} 42... Kg8 {[%clk 0:00:27.5]}
43. Ng6 {[%clk 0:00:14]} 43... Qd6+ {[%clk 0:00:25.1]} 44. Kh1 {[%clk 0:00:14]}
44... Qf6 {[%clk 0:00:12.4]} 45. Qh8+ {[%clk 0:00:10.7]} 45... Kf7 {[%clk
0:00:12.2]} 46. Nf4 {[%clk 0:00:10.9]} 46... Ne6 {[%clk 0:00:11.7]} 47. Qh5+
{[%clk 0:00:06.1]} 47... g6 {[%clk 0:00:10.7]} 48. Qh7+ {[%clk 0:00:06.2]} 48...
Qg7 {[%clk 0:00:09.3]} 49. Qxg7+ {[%clk 0:00:06.2]} 49... Nxg7 {[%clk
0:00:10.2]} 50. h4 {[%clk 0:00:05.2]} 50... Kf6 {[%clk 0:00:10.1]} 1/2-1/2

[Event "Early-Titled-Tuesday-Blitz-March-26-2024"]
[Site "Chess.com"]
[Date "2024.03.26"]
[Round "7"]
[White "Chess_Gainz"]
[Black "alekroth65"]
[Result "1-0"]
[WhiteElo "2555"]
[BlackElo "2386"]
[TimeControl "180+1"]
[EndTime "9:15:54 PDT"]
[Termination "Chess_Gainz won on time"]

1. e4 {[%clk 0:03:00.9]} 1... d6 {[%clk 0:02:58.7]} 2. d4 {[%clk 0:03:00.7]}
2... Nf6 {[%clk 0:02:59.1]} 3. Nc3 {[%clk 0:03:01.1]} 3... g6 {[%clk 0:02:59.5]}
4. Be3 {[%clk 0:03:01.2]} 4... c6 {[%clk 0:02:57.7]} 5. h3 {[%clk 0:03:01.1]}
5... Bg7 {[%clk 0:02:56.3]} 6. f4 {[%clk 0:02:59.8]} 6... b5 {[%clk 0:02:50.3]}
7. a3 {[%clk 0:03:00]} 7... O-O {[%clk 0:02:49]} 8. Bd3 {[%clk 0:03:00.2]} 8...
Nbd7 {[%clk 0:02:44.9]} 9. Nf3 {[%clk 0:03:00.3]} 9... e5 {[%clk 0:02:38.9]} 10.
O-O {[%clk 0:02:44.7]} 10... Nh5 {[%clk 0:02:29.6]} 11. fxe5 {[%clk 0:02:36.9]}
11... dxe5 {[%clk 0:02:29.3]} 12. d5 {[%clk 0:02:37.2]} 12... cxd5 {[%clk
0:02:15.3]} 13. Nxd5 {[%clk 0:02:37]} 13... a6 {[%clk 0:02:12.1]} 14. c4 {[%clk
0:01:57.6]} 14... Nf4 {[%clk 0:01:56.8]} 15. Nxf4 {[%clk 0:01:26.4]} 15... exf4
{[%clk 0:01:55.8]} 16. Bxf4 {[%clk 0:01:26.9]} 16... Bxb2 {[%clk 0:01:17.3]} 17.
Ra2 {[%clk 0:01:26.8]} 17... Bg7 {[%clk 0:01:10.9]} 18. cxb5 {[%clk 0:01:25.6]}
18... axb5 {[%clk 0:01:10.7]} 19. Kh1 {[%clk 0:01:14.4]} 19... Qb6 {[%clk
0:01:09.1]} 20. Qe1 {[%clk 0:00:35.9]} 20... b4 {[%clk 0:00:54.2]} 21. e5 {[%clk
0:00:16.8]} 21... bxa3 {[%clk 0:00:49.3]} 22. Be4 {[%clk 0:00:09.2]} 22... Ra4
{[%clk 0:00:44]} 23. Qe3 {[%clk 0:00:06]} 23... Qxe3 {[%clk 0:00:39.5]} 24. Bxe3
{[%clk 0:00:06.9]} 24... Rxe4 {[%clk 0:00:39.2]} 25. Rxa3 {[%clk 0:00:06.9]}
25... Nxe5 {[%clk 0:00:35.3]} 26. Ng5 {[%clk 0:00:07.4]} 26... Rc4 {[%clk
0:00:31.1]} 27. Ra8 {[%clk 0:00:06]} 27... Bf5 {[%clk 0:00:25.3]} 28. Rxf8+
{[%clk 0:00:06.9]} 28... Bxf8 {[%clk 0:00:23.5]} 29. Bf4 {[%clk 0:00:07]} 29...
Bg7 {[%clk 0:00:21.5]} 30. Re1 {[%clk 0:00:05.6]} 30... Rc5 {[%clk 0:00:19.9]}
31. Bh2 {[%clk 0:00:02.8]} 31... h6 {[%clk 0:00:17.4]} 32. Ne4 {[%clk
0:00:02.5]} 32... Bxe4 {[%clk 0:00:17.1]} 33. Rxe4 {[%clk 0:00:03.4]} 33... Rc1+
{[%clk 0:00:16.6]} 34. Bg1 {[%clk 0:00:04.3]} 34... Nd3 {[%clk 0:00:15.8]} 35.
Kh2 {[%clk 0:00:03.5]} 35... Ne1 {[%clk 0:00:13.2]} 36. Be3 {[%clk 0:00:01.9]}
36... Rb1 {[%clk 0:00:13.2]} 37. Re8+ {[%clk 0:00:02.6]} 37... Kh7 {[%clk
0:00:12.3]} 38. Re7 {[%clk 0:00:03.2]} 38... Kg8 {[%clk 0:00:11.1]} 39. Re8+
{[%clk 0:00:03.2]} 39... Kh7 {[%clk 0:00:11]} 40. Re7 {[%clk 0:00:03.8]} 40...
Nc2 {[%clk 0:00:11]} 41. Bf4 {[%clk 0:00:03]} 41... Rf1 {[%clk 0:00:10.5]} 42.
Bg3 {[%clk 0:00:03.4]} 42... Nd4 {[%clk 0:00:08.8]} 43. Rd7 {[%clk 0:00:03.5]}
43... Nf5 {[%clk 0:00:08]} 44. Bb8 {[%clk 0:00:03.6]} 44... Kg8 {[%clk
0:00:06.4]} 45. Rd8+ {[%clk 0:00:03.7]} 45... Bf8 {[%clk 0:00:06.2]} 46. Bc7
{[%clk 0:00:03.1]} 46... Rf2 {[%clk 0:00:04.8]} 47. Bb6 {[%clk 0:00:02.5]} 47...
Rc2 {[%clk 0:00:03]} 48. Ba5 {[%clk 0:00:02.1]} 48... Kg7 {[%clk 0:00:01.3]} 49.
Bb6 {[%clk 0:00:01.6]} 49... Bd6+ {[%clk 0:00:01.1]} 50. Kg1 {[%clk 0:00:01.5]}
1-0

[Event "Early-Titled-Tuesday-Blitz-March-26-2024"]
[Site "Chess.com"]
[Date "2024.03.26"]
[Round "7"]
[White "nikitakhoroshev"]
[Black "NastyaHn"]
[Result "0-1"]
[WhiteElo "2638"]
[BlackElo "2462"]
[TimeControl "180+1"]
[EndTime "9:15:57 PDT"]
[Termination "NastyaHn won by resignation"]

1. e4 {[%clk 0:03:00.9]} 1... e6 {[%clk 0:03:00.3]} 2. d4 {[%clk 0:02:59.6]}
2... d5 {[%clk 0:02:59.6]} 3. Nc3 {[%clk 0:02:59.6]} 3... Bb4 {[%clk 0:02:59.1]}
4. Ne2 {[%clk 0:02:59]} 4... Nf6 {[%clk 0:02:55.6]} 5. a3 {[%clk 0:02:55.5]}
5... Bxc3+ {[%clk 0:02:54.2]} 6. Nxc3 {[%clk 0:02:55.4]} 6... dxe4 {[%clk
0:02:54.4]} 7. Bg5 {[%clk 0:02:54.6]} 7... h6 {[%clk 0:02:33.6]} 8. Bxf6 {[%clk
0:02:53.1]} 8... Qxf6 {[%clk 0:02:33.7]} 9. Nxe4 {[%clk 0:02:53.3]} 9... Qf4
{[%clk 0:02:33.8]} 10. Ng3 {[%clk 0:02:36.5]} 10... O-O {[%clk 0:02:19.1]} 11.
Qd2 {[%clk 0:02:34.2]} 11... Qxd2+ {[%clk 0:02:11]} 12. Kxd2 {[%clk 0:02:33.9]}
12... Rd8 {[%clk 0:02:11.6]} 13. Ke3 {[%clk 0:02:29.8]} 13... b6 {[%clk
0:02:11.7]} 14. f3 {[%clk 0:02:19.1]} 14... Bb7 {[%clk 0:02:10.1]} 15. Bd3
{[%clk 0:02:17.6]} 15... Nd7 {[%clk 0:02:09.5]} 16. Ne4 {[%clk 0:02:12.5]} 16...
f5 {[%clk 0:01:59.2]} 17. Ng3 {[%clk 0:01:58.1]} 17... Kf7 {[%clk 0:01:50.8]}
18. h4 {[%clk 0:01:58.1]} 18... Nf6 {[%clk 0:01:45.4]} 19. h5 {[%clk 0:01:56.9]}
19... Nd5+ {[%clk 0:01:44]} 20. Kf2 {[%clk 0:01:47.4]} 20... Nf4 {[%clk
0:01:39.2]} 21. Ne2 {[%clk 0:01:39]} 21... Nxd3+ {[%clk 0:01:35.7]} 22. cxd3
{[%clk 0:01:39.9]} 22... Ba6 {[%clk 0:01:35.1]} 23. Ke3 {[%clk 0:01:39.7]} 23...
Rd7 {[%clk 0:01:33.4]} 24. Rac1 {[%clk 0:01:39]} 24... Re8 {[%clk 0:01:32.3]}
25. f4 {[%clk 0:01:36.1]} 25... Bb7 {[%clk 0:01:31.2]} 26. Rhg1 {[%clk
0:01:35.3]} 26... Rc8 {[%clk 0:01:29.4]} 27. g4 {[%clk 0:01:35.2]} 27... Ba6
{[%clk 0:01:19.2]} 28. gxf5 {[%clk 0:01:25.7]} 28... exf5 {[%clk 0:01:17.3]} 29.
Rc6 {[%clk 0:01:23.2]} 29... Bb5 {[%clk 0:01:05.6]} 30. Rcg6 {[%clk 0:01:22.4]}
30... Kf8 {[%clk 0:01:04.7]} 31. Nc3 {[%clk 0:01:17.4]} 31... Re7+ {[%clk
0:01:04.4]} 32. Kd2 {[%clk 0:01:17.3]} 32... Be8 {[%clk 0:01:03.6]} 33. R6g2
{[%clk 0:01:13.9]} 33... Bxh5 {[%clk 0:01:02.5]} 34. Nd5 {[%clk 0:01:14]} 34...
Rd7 {[%clk 0:01:00.3]} 35. Ne3 {[%clk 0:01:14.1]} 35... g6 {[%clk 0:00:57.6]}
36. Kc3 {[%clk 0:01:12]} 36... c5 {[%clk 0:00:55.3]} 37. d5 {[%clk 0:01:11.9]}
37... Re8 {[%clk 0:00:55.2]} 38. Rg3 {[%clk 0:01:09.6]} 38... Rde7 {[%clk
0:00:32.7]} 39. Nc4 {[%clk 0:01:08.9]} 39... Bg4 {[%clk 0:00:10.1]} 40. Ne5
{[%clk 0:01:07.3]} 40... Rxe5 {[%clk 0:00:09.9]} 41. fxe5 {[%clk 0:01:07]} 41...
Rxe5 {[%clk 0:00:10.6]} 42. Kc4 {[%clk 0:01:03.9]} 42... h5 {[%clk 0:00:10.7]}
43. Rh1 {[%clk 0:00:59.6]} 43... Ke7 {[%clk 0:00:08.7]} 44. d4 {[%clk
0:00:56.7]} 44... cxd4 {[%clk 0:00:04.6]} 45. Kxd4 {[%clk 0:00:57.6]} 45... Re4+
{[%clk 0:00:05.1]} 46. Kd3 {[%clk 0:00:57.6]} 46... Kd6 {[%clk 0:00:05.7]} 47.
Rc1 {[%clk 0:00:55.8]} 47... Kxd5 {[%clk 0:00:04.7]} 48. b4 {[%clk 0:00:55.3]}
48... h4 {[%clk 0:00:04.3]} 49. Rgg1 {[%clk 0:00:54.8]} 49... Rd4+ {[%clk
0:00:03.7]} 50. Ke3 {[%clk 0:00:53.8]} 50... h3 {[%clk 0:00:03]} 51. Rc8 {[%clk
0:00:52.6]} 51... h2 {[%clk 0:00:01.4]} 52. Rd8+ {[%clk 0:00:50.7]} 52... Ke5
{[%clk 0:00:01.9]} 53. Re8+ {[%clk 0:00:49]} 53... Kf6 {[%clk 0:00:02]} 54. Rh1
{[%clk 0:00:49.4]} 54... Re4+ {[%clk 0:00:01.7]} 55. Kf2 {[%clk 0:00:49.2]}
55... Rxe8 {[%clk 0:00:01.4]} 56. Rxh2 {[%clk 0:00:49.4]} 56... Re2+ {[%clk
0:00:02.1]} 57. Kg3 {[%clk 0:00:49.1]} 57... Rxh2 {[%clk 0:00:02.7]} 58. Kxh2
{[%clk 0:00:50]} 58... f4 {[%clk 0:00:03.2]} 59. Kg2 {[%clk 0:00:50]} 59... g5
{[%clk 0:00:03.7]} 60. Kf2 {[%clk 0:00:50.6]} 60... Kf5 {[%clk 0:00:04.3]} 61.
a4 {[%clk 0:00:50.7]} 61... Bh5 {[%clk 0:00:04.4]} 62. a5 {[%clk 0:00:51.1]}
62... Be8 {[%clk 0:00:05]} 63. axb6 {[%clk 0:00:51.1]} 63... axb6 {[%clk
0:00:05.5]} 64. b5 {[%clk 0:00:52]} 64... g4 {[%clk 0:00:05.9]} 65. Ke2 {[%clk
0:00:52.9]} 65... Bxb5+ {[%clk 0:00:06.1]} 66. Kf2 {[%clk 0:00:53.8]} 66... g3+
{[%clk 0:00:06.6]} 67. Kg2 {[%clk 0:00:54.7]} 0-1

[Event "Early-Titled-Tuesday-Blitz-March-26-2024"]
[Site "Chess.com"]
[Date "2024.03.26"]
[Round "7"]
[White "Jospem"]
[Black "PeshkaCh"]
[Result "1-0"]
[WhiteElo "3087"]
[BlackElo "2866"]
[TimeControl "180+1"]
[EndTime "9:15:58 PDT"]
[Termination "Jospem won by checkmate"]

1. e4 {[%clk 0:03:00.9]} 1... e5 {[%clk 0:02:59.8]} 2. Nf3 {[%clk 0:03:01.5]}
2... Nc6 {[%clk 0:02:59.2]} 3. Nc3 {[%clk 0:03:02.2]} 3... Nf6 {[%clk
0:02:59.3]} 4. h3 {[%clk 0:03:02.7]} 4... h6 {[%clk 0:02:58.9]} 5. d4 {[%clk
0:03:02.5]} 5... exd4 {[%clk 0:02:59.8]} 6. Nxd4 {[%clk 0:03:03.4]} 6... Bb4
{[%clk 0:03:00]} 7. Nxc6 {[%clk 0:03:04]} 7... bxc6 {[%clk 0:03:00.9]} 8. Bd3
{[%clk 0:03:04.6]} 8... d5 {[%clk 0:03:01.5]} 9. exd5 {[%clk 0:03:05.5]} 9...
cxd5 {[%clk 0:03:02.2]} 10. O-O {[%clk 0:03:06.1]} 10... O-O {[%clk 0:03:02.8]}
11. Qf3 {[%clk 0:03:06.7]} 11... Be6 {[%clk 0:03:03]} 12. Bf4 {[%clk 0:03:06.9]}
12... Bd6 {[%clk 0:03:01.9]} 13. Rad1 {[%clk 0:03:06.5]} 13... Rb8 {[%clk
0:03:02.1]} 14. b3 {[%clk 0:03:06.5]} 14... Bxf4 {[%clk 0:03:02.3]} 15. Qxf4
{[%clk 0:03:06.5]} 15... c6 {[%clk 0:03:01.6]} 16. Na4 {[%clk 0:03:05.7]} 16...
Qe7 {[%clk 0:03:00]} 17. Rfe1 {[%clk 0:03:04.8]} 17... Rfe8 {[%clk 0:02:58.7]}
18. Qd4 {[%clk 0:02:53.7]} 18... Rb4 {[%clk 0:02:57.7]} 19. Qc5 {[%clk
0:02:51.8]} 19... Qxc5 {[%clk 0:02:30.7]} 20. Nxc5 {[%clk 0:02:52.7]} 20... Rbb8
{[%clk 0:02:31.2]} 21. f4 {[%clk 0:02:40.8]} 21... Kf8 {[%clk 0:02:31.4]} 22.
Kf2 {[%clk 0:02:40.3]} 22... Bc8 {[%clk 0:02:19]} 23. c3 {[%clk 0:02:02]} 23...
Nd7 {[%clk 0:02:11.7]} 24. Na4 {[%clk 0:01:48.4]} 24... Bb7 {[%clk 0:02:10.7]}
25. c4 {[%clk 0:01:43.1]} 25... Rxe1 {[%clk 0:02:08.1]} 26. Rxe1 {[%clk
0:01:42.3]} 26... dxc4 {[%clk 0:02:05.9]} 27. Bxc4 {[%clk 0:01:42.1]} 27... Nb6
{[%clk 0:02:06.5]} 28. Nc5 {[%clk 0:01:39]} 28... Bc8 {[%clk 0:02:02.8]} 29. Rc1
{[%clk 0:01:31.5]} 29... Nxc4 {[%clk 0:01:53.4]} 30. Rxc4 {[%clk 0:01:32.4]}
30... Ke7 {[%clk 0:01:53.9]} 31. Ra4 {[%clk 0:01:30.5]} 31... Ra8 {[%clk
0:01:51.2]} 32. Ra5 {[%clk 0:01:27.7]} 32... Be6 {[%clk 0:01:38.6]} 33. Nxe6
{[%clk 0:01:22.5]} 33... Kxe6 {[%clk 0:01:39.5]} 34. Ke3 {[%clk 0:01:20]} 34...
Kd6 {[%clk 0:01:38.9]} 35. Kd4 {[%clk 0:01:17.4]} 35... Kc7 {[%clk 0:01:39.1]}
36. Kc5 {[%clk 0:00:56.2]} 36... Kb7 {[%clk 0:01:39.1]} 37. Kd6 {[%clk
0:00:56.5]} 37... Rd8+ {[%clk 0:01:23]} 38. Ke7 {[%clk 0:00:55.8]} 38... Rd5
{[%clk 0:01:07]} 39. Ra4 {[%clk 0:00:54.4]} 39... f5 {[%clk 0:00:38]} 40. Kf7
{[%clk 0:00:45.5]} 40... Rd2 {[%clk 0:00:37.5]} 41. g4 {[%clk 0:00:45.3]} 41...
fxg4 {[%clk 0:00:36.6]} 42. hxg4 {[%clk 0:00:46.2]} 42... Rd7+ {[%clk
0:00:28.6]} 43. Kg6 {[%clk 0:00:46.5]} 43... c5 {[%clk 0:00:26.4]} 44. f5 {[%clk
0:00:45.7]} 44... Kc6 {[%clk 0:00:25.8]} 45. Re4 {[%clk 0:00:45.3]} 45... Rd4
{[%clk 0:00:20.7]} 46. Re6+ {[%clk 0:00:43.8]} 46... Kd5 {[%clk 0:00:21.3]} 47.
Kxg7 {[%clk 0:00:29.1]} 47... Rxg4+ {[%clk 0:00:21.3]} 48. Kxh6 {[%clk
0:00:29.8]} 48... c4 {[%clk 0:00:20.2]} 49. bxc4+ {[%clk 0:00:28.5]} 49... Rxc4
{[%clk 0:00:21.1]} 50. Ra6 {[%clk 0:00:28.3]} 50... Ke5 {[%clk 0:00:08]} 51. Kg5
{[%clk 0:00:28.1]} 51... Rc7 {[%clk 0:00:07.5]} 52. f6 {[%clk 0:00:26.5]} 52...
Rc1 {[%clk 0:00:05.8]} 53. f7 {[%clk 0:00:26.2]} 53... Rg1+ {[%clk 0:00:03.6]}
54. Kh6 {[%clk 0:00:26.5]} 54... Rf1 {[%clk 0:00:04.2]} 55. Kg7 {[%clk
0:00:26.9]} 55... Kd5 {[%clk 0:00:04.2]} 56. f8=Q {[%clk 0:00:26.3]} 56... Rxf8
{[%clk 0:00:05.1]} 57. Kxf8 {[%clk 0:00:27.2]} 57... Kc5 {[%clk 0:00:06]} 58.
Rxa7 {[%clk 0:00:27.8]} 58... Kb5 {[%clk 0:00:06.9]} 59. Ra3 {[%clk 0:00:27.9]}
59... Kb6 {[%clk 0:00:07.8]} 60. Rb3+ {[%clk 0:00:28.4]} 60... Ka6 {[%clk
0:00:08.5]} 61. Ke7 {[%clk 0:00:28.8]} 61... Ka5 {[%clk 0:00:09.4]} 62. Kd6
{[%clk 0:00:29.7]} 62... Ka4 {[%clk 0:00:10.3]} 63. Kc5 {[%clk 0:00:30.6]} 63...
Ka5 {[%clk 0:00:11.2]} 64. Ra3# {[%clk 0:00:31.1]} 1-0

[Event "Early-Titled-Tuesday-Blitz-March-26-2024"]
[Site "Chess.com"]
[Date "2024.03.26"]
[Round "7"]
[White "frederiksvane"]
[Black "kids2010"]
[Result "1-0"]
[WhiteElo "2991"]
[BlackElo "2806"]
[TimeControl "180+1"]
[EndTime "9:15:59 PDT"]
[Termination "frederiksvane won by resignation"]

1. e4 {[%clk 0:02:57.8]} 1... c6 {[%clk 0:03:00.2]} 2. d4 {[%clk 0:02:57.5]}
2... d5 {[%clk 0:03:00.5]} 3. exd5 {[%clk 0:02:58.4]} 3... cxd5 {[%clk
0:03:00.9]} 4. Nf3 {[%clk 0:02:59]} 4... Nc6 {[%clk 0:03:01.2]} 5. c3 {[%clk
0:02:59.4]} 5... Bg4 {[%clk 0:03:00.9]} 6. h3 {[%clk 0:02:59.8]} 6... Bh5 {[%clk
0:02:59.5]} 7. Qb3 {[%clk 0:03:00.1]} 7... Qc7 {[%clk 0:02:45.3]} 8. Qxd5 {[%clk
0:03:00.3]} 8... Nf6 {[%clk 0:02:44.2]} 9. Qc4 {[%clk 0:03:00.9]} 9... Bxf3
{[%clk 0:02:41.5]} 10. gxf3 {[%clk 0:03:01.8]} 10... O-O-O {[%clk 0:02:39.8]}
11. Be3 {[%clk 0:02:45]} 11... e5 {[%clk 0:02:36.7]} 12. dxe5 {[%clk 0:02:01.5]}
12... Qxe5 {[%clk 0:01:56.9]} 13. f4 {[%clk 0:02:01.9]} 13... Qd5 {[%clk
0:01:55.6]} 14. Qxd5 {[%clk 0:02:01.3]} 14... Nxd5 {[%clk 0:01:56.5]} 15. Bg2
{[%clk 0:01:27.2]} 15... Nxe3 {[%clk 0:01:52.7]} 16. fxe3 {[%clk 0:01:27.7]}
16... Bc5 {[%clk 0:01:52.8]} 17. Ke2 {[%clk 0:01:28.4]} 17... Rhe8 {[%clk
0:01:37.5]} 18. e4 {[%clk 0:01:27.5]} 18... f5 {[%clk 0:01:38.1]} 19. Nd2 {[%clk
0:01:27.7]} 19... Re7 {[%clk 0:01:02.3]} 20. h4 {[%clk 0:01:18.5]} 20... fxe4
{[%clk 0:00:58.8]} 21. Nxe4 {[%clk 0:01:17.3]} 21... Rde8 {[%clk 0:00:51.1]} 22.
Kd3 {[%clk 0:01:17.5]} 22... Rd8+ {[%clk 0:00:51.3]} 23. Kc2 {[%clk 0:01:15.5]}
23... Be3 {[%clk 0:00:49.7]} 24. f5 {[%clk 0:01:10]} 24... Rxe4 {[%clk
0:00:30.2]} 25. Bxe4 {[%clk 0:01:07.6]} 25... Rd2+ {[%clk 0:00:30.7]} 26. Kb3
{[%clk 0:00:41.3]} 26... Na5+ {[%clk 0:00:30.6]} 27. Kb4 {[%clk 0:00:41.9]}
27... b6 {[%clk 0:00:08.4]} 28. b3 {[%clk 0:00:42.3]} 28... a6 {[%clk
0:00:04.8]} 29. Rhd1 {[%clk 0:00:28]} 29... Rf2 {[%clk 0:00:05.2]} 30. Rf1
{[%clk 0:00:23]} 30... Rd2 {[%clk 0:00:05.1]} 31. Ka4 {[%clk 0:00:22.7]} 31...
Kc7 {[%clk 0:00:03.4]} 32. f6 {[%clk 0:00:18.1]} 32... gxf6 {[%clk 0:00:02.4]}
33. Rxf6 {[%clk 0:00:18.9]} 33... Bc5 {[%clk 0:00:01.8]} 34. b4 {[%clk
0:00:16.6]} 34... Nc4 {[%clk 0:00:02.5]} 35. Bc2 {[%clk 0:00:06]} 35... Rxc2
{[%clk 0:00:02.3]} 36. Kb3 {[%clk 0:00:06.3]} 36... Ne3 {[%clk 0:00:01.8]} 37.
bxc5 {[%clk 0:00:06.2]} 37... bxc5 {[%clk 0:00:02.7]} 38. Re1 {[%clk 0:00:06.4]}
38... c4+ {[%clk 0:00:03.2]} 39. Ka3 {[%clk 0:00:03.9]} 39... Nd5 {[%clk
0:00:03.9]} 40. Rf3 {[%clk 0:00:03.9]} 40... Nxc3 {[%clk 0:00:04]} 41. Re4
{[%clk 0:00:03.7]} 41... Nb5+ {[%clk 0:00:04.3]} 42. Kb4 {[%clk 0:00:03.7]}
42... c3 {[%clk 0:00:04.9]} 43. Rc4+ {[%clk 0:00:04.2]} 43... Kb7 {[%clk
0:00:05.2]} 44. a4 {[%clk 0:00:04.4]} 44... Rb2+ {[%clk 0:00:05.7]} 45. Kc5
{[%clk 0:00:05]} 45... Nc7 {[%clk 0:00:06]} 46. Rf7 {[%clk 0:00:05]} 46... Kb8
{[%clk 0:00:05.6]} 47. Rxc3 {[%clk 0:00:05]} 47... Ne6+ {[%clk 0:00:05.7]} 48.
Kd5 {[%clk 0:00:05.4]} 48... Nd8 {[%clk 0:00:04.9]} 49. Rf8 {[%clk 0:00:05.8]}
49... Kb7 {[%clk 0:00:04.7]} 50. Ke4 {[%clk 0:00:04.9]} 50... Rd2 {[%clk
0:00:05.1]} 51. Rd3 {[%clk 0:00:04.9]} 51... Re2+ {[%clk 0:00:05.1]} 52. Kf3
{[%clk 0:00:05.1]} 1-0